[Event "Polish Ekstraliga 2024"]
[Site "Walbrzych"]
[Date "2024.10.08"]
[Round "2.3"]
[White "Zilka, Stepan"]
[Black "Teclaf, Pawel"]
[Result "0-1"]
[ECO "B10"]
[WhiteElo "2552"]
[BlackElo "2552"]
[Annotator "TA"]
[PlyCount "84"]
[EventDate "2024.10.05"]
[EventType "team-tourn"]
[EventCountry "POL"]
[SourceTitle "playchess.com"]
[Source "ChessBase"]
[SourceQuality "1"]
[WhiteTeam "Pegow"]
[BlackTeam "Bydgoszcz"]
[TimeControl "40/5400+30:1800+30"]

{[%evp 17,84,-29,-31,-14,-18,-45,-8,-22,-21,-22,-29,-33,-36,-47,-43,-30,-28,-36,-35,-83,-35,-42,-36,-41,-35,-42,-32,-292,-276,-282,-284,-281,-280,-431,-425,-420,-423,-779,-357,-442,-447,-429,-352,-352,-314,-382,-382,-358,-375,-375,-324,-377,-377,-329,-345,-327,-341,-343,-344,-332,-332,-665,-598,-654,-649,-605,-605,-583,-479]} 1. e4 {[%emt 0:00:05]} c6 {[%emt 0:00:03]} 2. Nf3 {[%emt 0:00:09]} d5 {[%emt 0:00:04]} 3. d3 {[%emt 0:00:03]} Qc7 {[%emt 0:00:02]} 4. e5 {[%emt 0:03:50]} Bg4 {[%emt 0:01:15]} 5. Nbd2 {[%emt 0:01:21]} e6 {[%emt 0:01:54]} 6. h3 {[%emt 0:01:07]} Bh5 {[%emt 0:00:18]} 7. d4 {[%emt 0:01:03]} c5 {[%emt 0:05:45]} 8. c3 {[%emt 0:03:12]} Ne7 {[%emt 0:08:14]} 9. Be2 {[%emt 0:04:30]} Nec6 {[%emt 0:02:03]} 10. O-O {[%emt 0:02:22]} Nd7 {[%emt 0:01:43]} 11. a3 {[%emt 0:02:48]} Be7 {[%emt 0:01:42]} 12. b4 {[%emt 0:00:47]} cxd4 {[%emt 0:00:05]} 13. cxd4 {[%emt 0:00:30]} O-O {[%emt 0:00:30]} 14. Bb2 {[%emt 0:00:30]} a6 {[%emt 0:00:30]} 15. Rc1 b5 16. g4 {[%emt 0:19:41]} Bg6 {[%emt 0:04:54]} 17. h4 {[%emt 0:00:05]} h6 {[%emt 0:05:48]} 18. g5 {[%emt 0:00:17]} Nb6 {[%emt 0:04:12]} (18... hxg5 $17 19. hxg5 Rfc8) 19. gxh6 $15 {[%emt 0:00:34]} gxh6 {[%emt 0:02:28]} 20. Kh1 {[%emt 0:00:07]} Kh7 {[%emt 0:11:10]} 21. Rg1 {[%emt 0:01:48]} Rg8 {[%emt 0:02:56]} 22. Rc3 $2 {[%emt 0:08:31][%mdl 8192]} (22. Qb3 $15) 22... Na4 $1 $19 {[%emt 0:02:11]} 23. Rb3 {[%emt 0:00:46]} Nxb2 {[%emt 0:00:56]} 24. Rxb2 {[%emt 0:00:08] [#]} Nxd4 $1 {[%emt 0:00:01]} 25. Rxg6 {[%emt 0:12:34]} (25. h5 {might work better.} Bf5 (25... Bxh5 26. Nxd4 Bxe2 27. Nxe2 $11) (25... Bc2 26. Rxc2 Rxg1+ 27. Kxg1 $17) 26. Nxd4) 25... fxg6 {[%emt 0:02:15]} 26. Nxd4 {[%emt 0:08:52] [#]} Qc3 $1 {[%emt 0:00:24]} (26... Qxe5 27. N2f3 Qf6 28. Rc2 $15) 27. Nc6 {[%emt 0:00:07]} (27. Qb3 $142 Qxd4 28. Nf3) 27... Qxc6 {[%emt 0:00:21]} (27... Qxb2 $142 28. Nxe7 Rg7 29. Nxg6 Rc8 (29... Kxg6 $2 30. Nf1 $19)) 28. Rc2 {[%emt 0:00:10]} Qb6 {[%emt 0:00:13]} 29. Nf3 {[%emt 0:01:31]} Rac8 {[%emt 0:04:03]} 30. Bd3 {[%emt 0:00:27]} Rxc2 {[%emt 0:02:51]} 31. Qxc2 {[%emt 0:00:05]} h5 {[%emt 0:01:11]} 32. Kg2 {[%emt 0:05:06]} Bd8 {[%emt 0:11:16]} 33. a4 {[%emt 0:05:51]} bxa4 {[%emt 0:04:09]} 34. Qxa4 {[%emt 0:00:07]} Rf8 {[%emt 0:00:56]} 35. Qxa6 {[%emt 0:06:21]} Qxa6 {[%emt 0:03:20]} (35... Qxb4 36. Qxe6 Qg4+ (36... Bxh4 37. Qxg6+ Kh8 38. Qh7#) 37. Qxg4 hxg4 38. Nh2 Bxh4 39. Nxg4 $19) 36. Bxa6 {[%emt 0:00:02]} Rf4 {[%emt 0:05:59]} 37. Bc8 {[%emt 0:01:22]} Rxb4 {[%emt 0:00:09]} ({Don't play} 37... Bxh4 38. b5) ({Much less strong is} 37... Rg4+ 38. Kf1) 38. Bxe6 {[%emt 0:00:07]} d4 {[%emt 0:00:02]} ({Resist} 38... Bxh4 39. Bxd5 Bd8 40. e6 $19) 39. Bc8 $2 {[%emt 0:02:41]} (39. Ne1) 39... d3 $19 {[%emt 0:02:26]} 40. Ba6 {[%emt 0:00:00]} Rb3 {[%emt 0:00:00]} (40... Bxh4 41. Bxd3 Be7 42. Ne1 $19) 41. Bc4 {[%emt 0:07:00]} Rc3 {[%emt 0:00:55]} 42. Bb5 {[%emt 0:00:16]} Kg7 {[%emt 0:03:11]} 0-1

[Event "Polish Ekstraliga 2024"]
[Site "Walbrzych"]
[Date "2024.10.08"]
[Round "2.4"]
[White "Nasuta, Grzegorz"]
[Black "Moranda, Wojciech"]
[Result "1/2-1/2"]
[ECO "B51"]
[WhiteElo "2545"]
[BlackElo "2559"]
[Annotator "TA"]
[PlyCount "46"]
[EventDate "2024.10.05"]
[EventType "team-tourn"]
[EventCountry "POL"]
[SourceTitle "playchess.com"]
[Source "ChessBase"]
[SourceQuality "1"]
[WhiteTeam "Bydgoszcz"]
[BlackTeam "Pegow"]
[TimeControl "40/5400+30:1800+30"]

{[%evp 9,46,12,10,17,35,31,35,25,44,30,32,31,31,21,26,27,28,20,49,0,0,0,12,0,0,0,0,0,0,0,51,58,73,51,57,0,0,0,82]} 1. e4 {[%emt 0:00:03]} c5 {[%emt 0:00:17]} 2. Nf3 {[%emt 0:00:07]} d6 {[%emt 0:00:23]} 3. Bb5+ {[%emt 0:00:51]} Nd7 {[%emt 0:00:23]} 4. a4 {[%emt 0:04:08][%cal Ba2a4,Ba4a5][%mdl 32]} Ngf6 {[%emt 0:02:15]} 5. Nc3 {[%emt 0:00:36]} a6 {[%emt 0:00:52]} 6. Be2 {[%emt 0:00:45]} g6 {[%emt 0:01:24]} 7. a5 {[%emt 0:03:29]} Bg7 {[%emt 0:00:55]} 8. O-O {[%emt 0:00:21] White is slightly better.} O-O {[%emt 0:01:08]} 9. d3 {[%emt 0:01:09]} b5 {[%emt 0:02:03]} 10. axb6 {[%emt 0:00:08]} Nxb6 {[%emt 0:01:35]} 11. Qd2 {[%emt 0:04:34]} a5 {[%emt 0:11:17]} 12. Qf4 {[%emt 0:04:27]} Ne8 {[%emt 0:08:31]} 13. Qh4 {[%emt 0:26:36]} Nc7 14. Bh6 {[%emt 0:00:30]} e5 {[%emt 0:07:41]} 15. Qxd8 {[%emt 0:16:14]} Rxd8 {[%emt 0:02:35]} 16. Bxg7 {[%emt 0:00:42]} Kxg7 {[%emt 0:00:09]} 17. Nd2 {[%emt 0:03:48]} Bd7 {[%emt 0:20:22]} 18. Nc4 {[%emt 0:08:38]} Nxc4 {[%emt 0:07:12]} 19. dxc4 {[%emt 0:00:07]} Rdb8 {[%emt 0:06:20]} (19... a4 $11) 20. b3 $1 $14 {[%emt 0:00:40]} Rb4 {[%emt 0:05:15]} 21. Rfd1 {[%emt 0:04:24]} Ra6 {[%emt 0:01:02]} 22. Na2 {[%emt 0:02:27]} (22. f3 $14) 22... Rb8 $11 {[%emt 0:07:13]} 23. Nc3 {[%emt 0:00:02]} ({White should play} 23. Bf1 $11) 23... Rb4 {[%emt 0:03:01] Weighted Error Value: White=0.07 (flawless) /Black=0.08 (flawless) .  Mistake:       	White=2     	Black=1      Inaccurate:     	White=1     	---        OK:         	White=6     	Black=9      Best:        	White=2     	Black=1      Strong:       	White=1     	---} 1/2-1/2

[Event "Polish Ekstraliga 2024"]
[Site "Walbrzych"]
[Date "2024.10.08"]
[Round "2.5"]
[White "Plat, Vojtech"]
[Black "Kazakouski, Valery"]
[Result "1/2-1/2"]
[ECO "D37"]
[WhiteElo "2488"]
[BlackElo "2557"]
[Annotator "TA"]
[PlyCount "109"]
[EventDate "2024.10.05"]
[EventType "team-tourn"]
[EventCountry "POL"]
[SourceTitle "playchess.com"]
[Source "ChessBase"]
[SourceQuality "1"]
[WhiteTeam "Pegow"]
[BlackTeam "Bydgoszcz"]
[TimeControl "40/5400+30:1800+30"]

{[%evp 27,109,-15,-18,-27,-14,-27,0,0,0,-37,7,0,0,0,0,-41,-40,-47,-33,-32,-31,-35,-29,-21,-18,-33,-20,-25,-50,-47,-27,-31,-35,-27,-42,-35,-23,-32,6,-28,0,0,0,0,0,0,0,0,0,0,0,-5,-5,-5,-5,-5,0,-5,-5,-5,-5,-28,-12,-12,-12,-12,-4,-4,-4,-4,-4,-4,-4,-4,-4,-4,-4,-4,0,-13,0,-4,0,-13]} 1. d4 {[%emt 0:00:04]} d5 {[%emt 0:00:15]} 2. c4 {[%emt 0:00:23]} e6 {[%emt 0:00:18]} 3. Nc3 {[%emt 0:00:05]} Be7 {[%emt 0:00:09]} 4. Nf3 {[%emt 0:01:07]} Nf6 {[%emt 0:00:10]} 5. Bf4 {[%emt 0:00:10]} O-O {[%emt 0:00:13]} 6. e3 {[%emt 0:00:03]} Nbd7 {[%emt 0:00:16]} 7. Rc1 {[%emt 0:00:13]} c5 {[%emt 0:01:33]} 8. Be2 {[%emt 0:06:44]} cxd4 {[%emt 0:08:27]} 9. exd4 {[%emt 0:00:13]} dxc4 {[%emt 0:00:28]} 10. Bxc4 {[%emt 0:00:20]} Nb6 {[%emt 0:00:45]} 11. Bd3 {[%emt 0:03:26]} Nbd5 {[%emt 0:03:51]} 12. Be5 {[%emt 0:00:42]} b6 {[%emt 0:07:57]} 13. O-O {[%emt 0:03:26]} Bb7 {[%emt 0:00:49]} 14. Qe2 Rc8 {[%emt 0:11:42]} 15. Rfd1 {[%emt 0:15:06]} g6 {[%emt 0:06:17]} 16. Ba6 {[%emt 0:05:30]} Qd7 {[%emt 0:09:40]} 17. Bb5 {[%emt 0:03:18]} Qd8 {[%emt 0:11:25]} 18. Ba6 {[%emt 0:00:06]} Nxc3 {[%emt 0:00:45]} 19. bxc3 {[%emt 0:00:17]} Bxa6 {[%emt 0:02:00]} 20. Qxa6 {[%emt 0:00:02]} Qd7 {[%emt 0:00:11]} 21. Bg3 {[%emt 0:03:58]} Ne4 {[%emt 0:06:11]} 22. Ne5 {[%emt 0:07:03]} Qd8 {[%emt 0:00:58]} 23. c4 {[%emt 0:00:25]} Nxg3 {[%emt 0:00:23]} 24. hxg3 {[%emt 0:00:04]} Qc7 {[%emt 0:00:39]} 25. a4 {[%emt 0:00:45]} Rfd8 {[%emt 0:01:32]} 26. a5 {[%emt 0:01:36]} bxa5 {[%emt 0:02:57]} 27. c5 {[%emt 0:07:08]} Bf6 {[%emt 0:00:34]} 28. Nf3 {[%emt 0:15:04]} Kg7 {[%emt 0:02:14]} 29. Rb1 $1 {[%emt 0:08:50]} Rb8 {[%emt 0:03:44]} 30. Rxb8 {[%emt 0:00:38]} Rxb8 {[%emt 0:00:53]} 31. Ra1 {[%emt 0:00:10]} Bd8 {[%emt 0:02:48]} (31... Rd8 {simplifies} 32. Qxa5 Qxa5 33. Rxa5 Bxd4 34. Nxd4 Rxd4 35. Rxa7 Rc4) 32. Ne5 {[%emt 0:01:26]} Qc8 {[%emt 0:08:14]} (32... Rb2 {simplifies} 33. Qc6 Rb4 34. Qxc7 Bxc7 35. Nc6 Rc4) 33. Qd6 {[%emt 0:04:22]} (33. Qxa7 $2 {is the wrong capture.} Rb7 34. Rxa5 (34. Qa6 $2 Rb1+ 35. Rxb1 Qxa6 $19) 34... Rxa7 $19) (33. Qxc8 {simplifies} Rxc8 34. Kf1 a6 35. g4) 33... Bc7 {[%emt 0:03:34]} 34. Qe7 {[%emt 0:00:21]} Bxe5 {[%emt 0:00:11]} 35. dxe5 {[%emt 0:00:01]} Rb7 {[%emt 0:01:50]} 36. Qf6+ {[%emt 0:00:05]} Kg8 {[%emt 0:00:07]} 37. Rd1 {[%emt 0:06:23]} (37. Rxa5 Qc7 38. Ra6 Qxc5) 37... Rb8 {[%emt 0:01:23]} 38. Qe7 {[%emt 0:00:13]} a4 {[%emt 0:02:48]} 39. Rd7 {[%emt 0:03:53]} Qf8 {[%emt 0:00:05]} 40. Qxf8+ {[%emt 0:00:00]} Kxf8 {[%emt 0:00:00]} 41. Rxa7 {[%emt 0:00:27]} Rb1+ {[%emt 0:00:23]} 42. Kh2 {[%emt 0:00:01]} Rc1 {[%emt 0:00:13]} 43. Rxa4 {[%emt 0:00:27]} Rxc5 {[%emt 0:00:06]} 44. f4 {[%emt 0:00:06]} h5 {[%emt 0:00:07]} (44... g5 $5) 45. g4 {[%emt 0:01:45]} hxg4 {[%emt 0:00:06]} 46. Kg3 {[%emt 0:00:02]} g5 {[%emt 0:00:12]} 47. Kxg4 {[%emt 0:00:30]} gxf4 {[%emt 0:00:07]} 48. Kxf4 {[%emt 0:00:03]} Kg7 {[%emt 0:00:10]} 49. g3 {[%emt 0:00:18]} Kg6 {[%emt 0:00:09]} 50. Rb4 {[%emt 0:02:01]} Rc1 {[%emt 0:00:08]} 51. Re4 {[%emt 0:04:04]} Rf1+ {[%emt 0:00:12]} 52. Kg4 $1 {[%emt 0:00:01]} Rc1 {[%emt 0:00:19]} 53. Kf3 {[%emt 0:01:02]} Rf1+ {[%emt 0:00:07]} 54. Kg4 {[%emt 0:00:02]} Rc1 {[%emt 0:00:06]} 55. Kf3 {[%emt 0:00:02]} 1/2-1/2

[Event "Polish Ekstraliga 2024"]
[Site "Walbrzych"]
[Date "2024.10.08"]
[Round "2.6"]
[White "Kiolbasa, Oliwia"]
[Black "Maltsevskaya, Aleksandra"]
[Result "1-0"]
[ECO "C50"]
[WhiteElo "2351"]
[BlackElo "2368"]
[Annotator "RC"]
[PlyCount "71"]
[EventDate "2024.10.05"]
[EventType "team-tourn"]
[EventCountry "POL"]
[SourceTitle "playchess.com"]
[Source "ChessBase"]
[SourceQuality "1"]
[WhiteTeam "Bydgoszcz"]
[BlackTeam "Pegow"]
[TimeControl "40/5400+30:1800+30"]

1. e4 {[%emt 0:00:05]} e5 {[%emt 0:00:05]} 2. Nf3 {[%emt 0:00:07]} Nc6 {[%emt 0:00:08]} 3. Bc4 {[%emt 0:00:15]} Bc5 {[%emt 0:00:06]} 4. d3 {[%emt 0:00:36]} h6 {[%emt 0:00:08]} 5. c3 {[%emt 0:02:13]} Qe7 {[%emt 0:13:33]} 6. b4 {[%emt 0:07:20]} Bb6 {[%emt 0:00:07]} 7. a4 {[%emt 0:00:07]} a6 {[%emt 0:03:52]} 8. O-O {[%emt 0:03:53]} Nf6 {[%emt 0:01:23]} 9. Nbd2 {[%emt 0:01:05]} d6 {[%emt 0:00:21]} 10. Bb3 {[%emt 0:04:00]} O-O {[%emt 0:11:58]} 11. Nc4 Be6 12. Ba3 {[%emt 0:08:56]} Ba7 {[%emt 0:06:04]} 13. b5 {[%emt 0:03:02]} Bxc4 {[%emt 0:00:06]} 14. Bxc4 {[%emt 0:00:48]} Na5 {[%emt 0:01:34]} 15. Ba2 {[%emt 0:03:07]} axb5 {[%emt 0:01:21]} 16. axb5 {[%emt 0:00:20]} Qd7 {[%emt 0:10:06]} 17. Rb1 {[%emt 0:12:57]} Bb6 {[%emt 0:02:54]} 18. Bc1 {[%emt 0:00:41]} Rfe8 {[%emt 0:00:48]} 19. Be3 {[%emt 0:12:49]} d5 {[%emt 0:12:06]} 20. Bxb6 {[%emt 0:10:06]} cxb6 {[%emt 0:00:11]} 21. Qe2 {[%emt 0:00:36]} dxe4 {[%emt 0:04:50]} 22. dxe4 {[%emt 0:00:10]} Rac8 {[%emt 0:00:04]} 23. Rfd1 {[%emt 0:07:46]} Qg4 {[%emt 0:01:31]} 24. h3 {[%emt 0:03:18]} Qf4 {[%emt 0:14:34]} 25. Rd3 {[%emt 0:05:20]} Nxe4 {[%emt 0:07:13]} 26. g3 {[%emt 0:04:21]} Qf5 {[%emt 0:01:06]} 27. Nh4 {[%emt 0:02:33]} Qh7 {[%emt 0:00:42]} 28. Rd7 {[%emt 0:01:56]} Ng5 {[%emt 0:00:07]} 29. Nf3 {[%emt 0:04:29]} Nc4 {[%emt 0:07:06]} 30. Nxg5 {[%emt 0:00:26]} hxg5 {[%emt 0:00:03]} 31. Rbd1 {[%emt 0:00:14]} Na3 {[%emt 0:01:22]} 32. Bxf7+ {[%emt 0:00:17]} Kh8 {[%emt 0:00:06]} 33. Bxe8 {[%emt 0:00:58]} Rxe8 {[%emt 0:00:05]} 34. Rd8 {[%emt 0:00:36]} Qg6 {[%emt 0:00:05]} 35. R1d6 {[%emt 0:01:25]} Qf7 {[%emt 0:00:26]} 36. Qxe5 {[%emt 0:00:17]} 1-0

[Event "Polish Ekstraliga 2024"]
[Site "Walbrzych"]
[Date "2024.10.08"]
[Round "2.7"]
[White "Erdogmus, Yagiz Kaan"]
[Black "Harikrishna, Pentala"]
[Result "0-1"]
[ECO "A14"]
[WhiteElo "2601"]
[BlackElo "2688"]
[Annotator "TA"]
[PlyCount "84"]
[EventDate "2024.10.05"]
[EventType "team-tourn"]
[EventCountry "POL"]
[SourceTitle "playchess.com"]
[Source "ChessBase"]
[SourceQuality "1"]
[WhiteTeam "Legnica"]
[BlackTeam "Polonia Wroclaw"]
[TimeControl "40/5400+30:1800+30"]

{[%evp 16,84,22,13,19,12,43,41,39,11,6,0,0,0,0,0,-4,0,0,0,0,0,0,0,0,0,0,-72,-83,-56,-69,-64,-163,-71,-41,-134,-50,-80,-80,-91,-80,-116,-46,-47,-56,-39,0,-52,-66,-53,-64,-63,-63,-63,-63,-63,-61,-111,-65,-75,0,-91,-72,-429,-454,-473,-463,-679,-635,-29950,-12349]} 1. Nf3 {[%emt 0:00:22]} Nf6 {[%emt 0:00:27]} 2. g3 {[%emt 0:00:07]} d5 {[%emt 0:01:32]} 3. Bg2 {[%emt 0:00:10]} e6 {[%emt 0:00:10]} 4. O-O {[%emt 0:00:08]} Be7 {[%emt 0:00:15]} 5. c4 {[%emt 0:00:10]} O-O {[%emt 0:00:16]} 6. b3 {[%emt 0:00:45]} a5 {[%emt 0:03:40]} 7. Nc3 {[%emt 0:02:35]} c6 {[%emt 0:00:53]} 8. Bb2 {[%emt 0:16:58]} Nbd7 {[%emt 0:04:37]} 9. d4 {[%emt 0:04:46]} b6 {[%emt 0:03:15][%cal Bb7b6,Bb6b5][%mdl 32]} 10. Nd2 {[%emt 0:02:55]} Ba6 11. e4 {[%emt 0:19:44]} b5 {[%emt 0:18:45] White is slightly better.} 12. e5 {[%emt 0:10:23]} Ne8 {[%emt 0:00:31]} 13. c5 {[%emt 0:01:59]} f6 {[%emt 0:04:28]} 14. exf6 {[%emt 0:10:27]} Bxf6 {[%emt 0:00:44]} 15. Ne2 {[%emt 0:03:54]} b4 {[%emt 0:03:22]} 16. Re1 {[%emt 0:02:27]} Nxc5 {[%emt 0:11:09] And now ...Nd3 would win.} 17. Nf4 {[%emt 0:00:55][%cal Od1c2]} Nd3 {[%emt 0:04:07]} 18. Nxe6 {[%emt 0:04:49]} Nxb2 {[%emt 0:07:37]} 19. Qc2 {[%emt 0:00:24]} Qb6 {[%emt 0:02:59]} 20. Qxb2 {[%emt 0:01:26][%cal Od2f3]} Nd6 $1 {[%emt 0:02:38]} 21. Nxf8 {[%emt 0:10:39]} (21. Rac1 $11) 21... Bxd4 $1 $17 {[%emt 0:00:49]} 22. Nd7 {[%emt 0:00:15]} Qa7 {[%emt 0:00:08]} 23. Qc2 {[%emt 0:01:37]} Bxf2+ {[%emt 0:05:46] This pair of bishops is nice.} (23... Qxd7 24. Rac1 Bc3 25. a3) 24. Kh1 {[%emt 0:00:02]} Qxd7 {[%emt 0:00:10]} 25. Rec1 {[%emt 0:01:11]} (25. Red1 $1 $15) 25... Rc8 {[%emt 0:04:24] Black is more active.} (25... Bb5 $1 $17 26. a4 bxa3 27. Rxa3 Bb6) 26. Nc4 {[%emt 0:02:38]} Bd4 $1 {[%emt 0:00:32]} 27. Nxd6 {[%emt 0:01:14]} Qxd6 {[%emt 0:00:13]} 28. Bh3 {[%emt 0:00:35]} Bxa1 {[%emt 0:07:05]} ({Black should try} 28... Rd8 $17 29. Rab1 Bc3) 29. Bxc8 $15 {[%emt 0:00:04]} Bxc8 {[%emt 0:00:04]} 30. Rxa1 $17 {[%emt 0:00:09][%mdl 4096] Endgame. KQR-KQB} Qf6 {[%emt 0:00:12]} 31. Re1 {[%emt 0:00:37]} ({White should play} 31. Rc1 $1 $11) 31... Bf5 $15 {[%emt 0:00:07]} 32. Qf2 {[%emt 0:00:28]} Be4+ {[%emt 0:00:45]} 33. Kg1 {[%emt 0:00:01]} Qc3 $36 {[%emt 0:00:14][%mdl 2048] Black is more active.} 34. Re3 {[%emt 0:01:08]} Qe5 {[%emt 0:00:13]} 35. Re1 {[%emt 0:00:25]} h6 {[%emt 0:00:56]} 36. Rc1 {[%emt 0:01:16]} (36. Re2 $15) 36... Kh7 {[%emt 0:01:30]} (36... c5 $17 {[%cal Oc5c4] ...c4! is the strong threat.} 37. Qd2 (37. Rxc5 $2 {is the wrong capture.} Qa1+ 38. Qf1 Qxa2 $19) (37. Qxc5 $2 {too greedy.} Qb2 $19) 37... Qh5) 37. Qd2 {[%emt 0:00:28]} d4 {[%emt 0:02:15]} (37... Qh5 $17 {Hoping for ...Qf3.} 38. Qf2 Qe5) 38. Rc4 {[%emt 0:00:37] [#]} (38. Re1 $1 $11 Qd5 39. Qe2) 38... c5 $1 $17 {[%emt 0:00:16]} 39. Qe2 {[%emt 0:00:33][%mdl 8192] [#] Against Qh5. White does not recover from this.} (39. Qe1 $17) 39... Qf5 $1 $19 {[%emt 0:03:18]} 40. Qf2 {[%emt 0:00:00] aiming for Qxf5+.} Qd5 {[%emt 0:00:00]} 41. Qd2 {[%emt 0:11:34]} (41. h4 $142 a4 42. Kh2) 41... Qh5 {[%emt 0:09:23]} 42. Qf4 {[%emt 0:03:22]} Qe2 {[%emt 0:00:43] Weighted Error Value: White=0.52/Black=0.13 (very precise) .  Loses game:     	White=1     	---        Mistake:       	White=6     	Black=4      Inaccurate:     	White=4     	Black=2      OK:         	White=9     	Black=16     Best:        	White=6     	Black=2      Strong:       	---       	Black=5} 0-1

[Event "Polish Ekstraliga 2024"]
[Site "Walbrzych"]
[Date "2024.10.08"]
[Round "2.8"]
[White "Grandelius, Nils"]
[Black "Malek, Jan"]
[Result "1/2-1/2"]
[ECO "C60"]
[WhiteElo "2650"]
[BlackElo "2479"]
[Annotator "TA"]
[PlyCount "68"]
[EventDate "2024.10.05"]
[EventType "team-tourn"]
[EventCountry "POL"]
[SourceTitle "playchess.com"]
[Source "ChessBase"]
[SourceQuality "1"]
[WhiteTeam "Polonia Wroclaw"]
[BlackTeam "Legnica"]
[TimeControl "40/5400+30:1800+30"]

{[%evp 9,68,19,28,22,33,29,25,31,17,25,15,0,27,8,11,0,37,45,38,31,40,34,45,44,51,46,46,45,44,45,44,43,56,32,41,41,47,46,41,41,42,43,47,10,25,11,14,11,9,0,0,0,0,-39,-34,-30,-27,-34,0,0,0]} 1. e4 {[%emt 0:00:27]} e5 {[%emt 0:00:11]} 2. Nf3 {[%emt 0:00:14]} Nc6 {[%emt 0:00:08]} 3. Bb5 {[%emt 0:00:05]} Nge7 {[%emt 0:00:07]} 4. Nc3 {[%emt 0:04:54]} Ng6 {[%emt 0:00:15]} 5. d4 {[%emt 0:01:24]} exd4 {[%emt 0:00:06]} 6. Nxd4 {[%emt 0:00:14]} Nxd4 {[%emt 0:00:07]} 7. Qxd4 {[%emt 0:00:05][%cal Oh2h4]} c6 {[%emt 0:00:15]} 8. Be2 {[%emt 0:03:49] White has an edge.} Qb6 {[%emt 0:00:09]} 9. Qd3 {[%emt 0:02:46]} Be7 {[%emt 0:00:16]} 10. a4 {[%emt 0:02:01][%cal Ba2a4,Ba4a5][%mdl 32]} O-O {[%emt 0:00:28]} 11. a5 {[%emt 0:01:20]} Qc7 {[%emt 0:00:15]} 12. Qc4 {[%emt 0:07:49]} Kh8 13. Nd5 {[%emt 0:11:21]} Qe5 {[%emt 0:27:24]} 14. Nxe7 {[%emt 0:00:22]} Qxe7 {[%emt 0:02:58]} 15. O-O {[%emt 0:04:07]} f5 {[%emt 0:01:55]} 16. Ra4 {[%emt 0:15:21]} Re8 {[%emt 0:05:33]} 17. Bd3 {[%emt 0:14:30]} Ne5 {[%emt 0:13:10]} 18. Qc3 {[%emt 0:00:17]} Nxd3 {[%emt 0:01:02]} 19. cxd3 {[%emt 0:00:03]} ({But not} 19. Qxd3 fxe4 20. Qd4 d6 $11) 19... d6 {[%emt 0:00:31]} 20. Re1 {[%emt 0:05:14]} c5 {[%emt 0:02:54][%cal Od6d5]} 21. Bd2 {[%emt 0:02:24] [#] Strongly threatening exf5.} Bd7 {[%emt 0:02:29]} 22. exf5 {[%emt 0:08:09]} Qf7 {[%emt 0:00:18]} 23. Rf4 {[%emt 0:03:21][%cal Ba4f4,Bf4f3,Bf3g3][%mdl 32]} Rxe1+ {[%emt 0:01:50]} 24. Bxe1 {[%emt 0:00:01]} Bxf5 {[%emt 0:00:15]} 25. h3 {[%emt 0:02:56] [#] And now g4 would win.} Qd5 {[%emt 0:05:30]} 26. Rf3 {[%emt 0:00:42]} Re8 {[%emt 0:00:54]} 27. Bd2 {[%emt 0:00:14]} Kg8 {[%emt 0:02:00]} 28. Rg3 {[%emt 0:04:04][%csl Gg3][%cal Rc3g7]} Bg6 {[%emt 0:00:19]} 29. Qc4 {[%emt 0:04:55]} Qxc4 {[%emt 0:07:42]} 30. dxc4 {[%emt 0:00:02]} Re4 {[%emt 0:00:11]} 31. b3 {[%emt 0:02:13]} Rd4 {[%emt 0:00:30]} 32. Bg5 {[%emt 0:00:31]} Kf7 {[%emt 0:02:12]} 33. Re3 {[%emt 0:00:32]} h6 {[%emt 0:01:24]} 34. Bd8 {[%emt 0:00:18]} Re4 {[%emt 0:01:32] Weighted Error Value: White=0.06 (flawless) /Black=0.05 (flawless) .  Inaccurate:     	White=2     	Black=3      OK:         	White=13    	Black=15     Best:        	White=1     	Black=1} 1/2-1/2